Cogmind - Beta 9.6 *** ADVENTURER MODE // 2020.07.26 @ 14:27:51 Player: nacho Result: Destroyed by as-64914 with Assembled Heavy Rifle Performance ------------- Evolutions (0) 0 Regions Visited (2) 400 Robots Destroyed (6) 30 Value Destroyed (96) 96 Prototype IDs (1) 20 Alien Tech Used (0) 0 Bonus (0) 0 TOTAL SCORE: 546 Bonus ------- None Cogmind --------- Core Integrity 0/250 Matter 300/300 Energy 99/100 System Corruption 9% Temperature Cool (277) Movement Core (50) Location -10/Mines Parts ------- > --- POWER (1) -------- (None) > --- PROPULSION (2) --- (None) > --- UTILITY (2) ------ (None) > --- WEAPON (2) ------- (None) > --- INVENTORY (4) ---- Wheel Compact Wheel Peak State ------------ > --- POWER ------------ Ion Engine > --- PROPULSION ------- Wheel Compact Wheel > --- UTILITY ---------- Improved Terrain Scanner Seismic Analyzer > --- WEAPON ----------- Assault Rifle Assault Rifle > --- INVENTORY -------- (None) [Rating: 8] Favorites ----------- Power Ion Engine Engine Ion Engine Propulsion Wheel Treads Light Treads Wheel Wheel Utility Seismic Analyzer Device Improved Terrain Scanner Processor Seismic Analyzer Weapon Assault Rifle Energy Gun Small Laser Ballistic Gun Assault Rifle Build | -11 -10 -10 ------- Run | Scr Mat Min Slots Evolved . | . . . Power . | . . . Propulsion . | . . . Utility . | . . . Weapon . | . . . Parts Attached 14 | 13 . 1 Power 1 | 1 . . Engine 1 | 1 . . Core . | . . . Reactor . | . . . Propulsion 6 | 6 . . Treads 2 | 2 . . Leg . | . . . Wheel 4 | 4 . . Hover . | . . . Flight . | . . . Utility 4 | 3 . 1 Device 3 | 2 . 1 Storage . | . . . Processor 1 | 1 . . Hackware . | . . . Protection . | . . . Artifact . | . . . Weapon 3 | 3 . . Energy Gun 1 | 1 . . Energy Cannon . | . . . Ballistic Gun 2 | 2 . . Ballistic Cannon . | . . . Launcher . | . . . Special Weapon . | . . . Impact Weapon . | . . . Slashing Weapon . | . . . Piercing Weapon . | . . . Special Melee Weapon . | . . . Unidentified Prototypes 1 | . . 1 Parts Lost 8 | . 6 2 Power 1 | . 1 . Propulsion 2 | . 2 . Utility 3 | . 1 2 Weapon 2 | . 2 . Highest Loss Streak 6 | . 6 2 Average Slot Usage (%) 60 | . 84 24 Engine 7 | . 12 . Wheel 13 | . 22 . Device 12 | . 12 11 Processor 13 | . 14 12 Ballistic Gun 13 | . 22 . Naked Turns 11 | . . 11 Heaviest Build 10 | 10 10 1 Greatest Support 40 | 40 20 3 Greatest Overweight (x) 1 | 1 1 . Average Overweight (x) . | . . . Largest Inventory Capacity 4 | 4 4 4 Average Capacity 4 | 4 4 4 Most Carried 2 | 2 2 2 Average Carried 1 | . 2 2 Final Capacity 4 | 4 4 4 Final Carried 2 | 2 2 2 Class Distribution -------------------- 100% | Mutant Dominant Class ---------------- Mutant | -10/Materials Mutant | -10/Mines Resources | -11 -10 -10 ----------- Run | Scr Mat Min Matter Collected 442 | 352 90 . Remotely 67 | 67 . . Salvage Created 229 | 139 90 . Parts 18 | 13 5 . Haulers Intercepted . | . . . Recyclers Shooed 1 | 1 . . Parts Field Recycled . | . . . Retrieved Matter . | . . . Parts Self-Destructed . | . . . Prevented . | . . . Kills | -11 -10 -10 ------- Run | Scr Mat Min Combat Hostiles Destroyed 2 | . 2 . Guns 2 | . 2 . Classes Destroyed 4 | 3 1 . Worker 2 | 2 . . Tunneler 1 | 1 . . Recycler 1 | 1 . . Grunt 2 | . 2 . Best Kill Streak 2 | 2 2 . Combat Bots Only 2 | . 2 . Max Kills in Single Turn 1 | 1 1 . Gunslinging . | . . . Exploded . | . . . Melee . | . . . Uniques/NPCs Destroyed . | . . . Combat | -11 -10 -10 -------- Run | Scr Mat Min Damage Taken 649 | . 546 103 Core 251 | . 185 66 Absorbed by Shields . | . . . Core Remaining (%) 100 | 100 . . Volleys Fired 29 | 7 22 . Largest 2 | 2 2 . Hottest 40 | 40 40 . Shots Fired 49 | 14 35 . Gun 49 | 14 35 . Cannon . | . . . Launcher . | . . . Special . | . . . Kinetic 49 | 14 35 . Thermal . | . . . Explosive . | . . . Electromagnetic . | . . . Robot Hit Streak 18 | 6 18 . Robot Miss Streak 1 | 1 . . Penetration Max . | . . . Secondary Targets . | . . . Shots Hit Robots 28 | 11 17 . Core Hits 15 | 5 10 . Critical Hits 1 | . 1 . Critical Kills 1 | . 1 . Critical Parts Destroyed . | . . . Melee Attacks . | . . . Impact . | . . . Slashing . | . . . Piercing . | . . . Sneak Attacks . | . . . Combat Hostiles . | . . . Follow-up Attacks . | . . . Damage Inflicted 380 | 138 238 4 Guns 346 | 138 208 . Cannons . | . . . Explosions . | . . . Melee . | . . . Ramming 34 | . 30 4 Kinetic 346 | 138 208 . Thermal . | . . . Explosive . | . . . Electromagnetic . | . . . Impact . | . . . Slashing . | . . . Piercing . | . . . Highest Corruption 9 | . 4 9 Average Corruption 2 | . 1 4 Corruption Purged . | . . . Effects 5 | . 1 4 Message Errors 1 | . . 1 Heat Flow Errors 3 | . . 3 Energy Discharges 1 | . 1 . Overload Shots . | . . . Overflow Damage . | . . . Projectiles . | . . . Explosions . | . . . Melee . | . . . Knockbacks . | . . . Impact . | . . . Kinetic . | . . . Secondary . | . . . Self-Inflicted Damage 14 | . 13 1 Shots . | . . . Rammed 11 | . 9 2 Targets Rammed 11 | . 9 2 Kicked . | . . . Crushed . | . . . Highest Temperature 124 | . 8 124 Average Temperature 33 | . 4 72 Received Heat Transfer 447 | . 387 60 Siege Activations . | . . . Robots Corrupted . | . . . Combat Hostiles . | . . . Parts Fried . | . . . Impact Corruptions . | . . . Robots Melted . | . . . Combat Hostiles . | . . . Parts Melted . | . . . Heat Transferred . | . . . Parts Sabotaged . | . . . Parts Stolen . | . . . Parts Stripped . | . . . Power Chain Reactions . | . . . Missiles Intercepted . | . . . Alert | -11 -10 -10 ------- Run | Scr Mat Min Peak Influence 85 | 20 85 34 Average Influence 27 | 6 46 22 Maximum Alert Level . | . . . Low Security (%) 100 | 100 100 100 Level 1 . | . . . Level 2 . | . . . Level 3 . | . . . Level 4 . | . . . Level 5 . | . . . High Security . | . . . Max Security . | . . . Squads Dispatched 1 | . 1 . Investigation 1 | . 1 . Extermination . | . . . Reinforcement . | . . . Assault . | . . . Garrison . | . . . Intercept . | . . . Construction Impeded . | . . . Haulers Reinforced . | . . . Stealth | -11 -10 -10 --------- Run | Scr Mat Min Distress Signals . | . . . Communications Jammed . | . . . Distress Signals . | . . . Times Spotted 15 | . 7 8 Peak Tracking Total 6 | . 6 6 Tactical Retreats 2 | . . 2 Traps | -11 -10 -10 ------- Run | Scr Mat Min Traps Triggered . | . . . Indirectly . | . . . Trap Hack Attempts . | . . . Triggered . | . . . Disarmed . | . . . Reprogrammed . | . . . Reused . | . . . Traps Extracted . | . . . Installed . | . . . Triggered . | . . . Machines | -11 -10 -10 ---------- Run | Scr Mat Min Machines Disabled . | . . . Max in Single Turn . | . . . Machines Sabotaged . | . . . Garrisons Compromised . | . . . Overloaded Fab Kills . | . . . Fab Network Shutdowns . | . . . Hacking | -11 -10 -10 --------- Run | Scr Mat Min Machines Accessed 2 | . 2 . Terminals 2 | . 2 . Fabricators . | . . . Repair Stations . | . . . Recycling Units . | . . . Scanalyzers . | . . . Garrison Access . | . . . Total Hacks 9 | . 9 . Successful 5 | . 5 . Failed 4 | . 4 . Catastrophic . | . . . Database Lockouts . | . . . Manual . | . . . Terminals 9 | . 9 . Fabricators . | . . . Repair Stations . | . . . Recycling Units . | . . . Scanalyzers . | . . . Garrison Access . | . . . Terminal Hacks 5 | . 5 . Record 3 | . 3 . Assault Status 1 | . 1 . Recall Assault 1 | . 1 . Fabricator Hacks . | . . . Repair Station Hacks . | . . . Recycling Unit Hacks . | . . . Scanalyzer . | . . . Garrison Access Hacks . | . . . Unauthorized Hacks . | . . . Terminals . | . . . Fabricators . | . . . Repair Stations . | . . . Recycling Units . | . . . Scanalyzers . | . . . Garrison Access . | . . . Data Cores Recovered . | . . . Used . | . . . Hacking Detections 1 | . 1 . Full Trace Events 1 | . 1 . Feedback Events 1 | . 1 . Corruption 1 | . 1 . Feedback Blocked . | . . . Robot Schematics Acquired . | . . . Robots Built . | . . . Matter . | . . . Time . | . . . Total Robot Build Rating . | . . . Part Schematics Acquired . | . . . Parts Built . | . . . Matter . | . . . Time . | . . . Total Part Build Rating . | . . . Parts Repaired . | . . . Time . | . . . Parts Recycled . | . . . Recycled Matter . | . . . Retrieved Matter . | . . . Retrieved Components . | . . . Parts Scanalyzed . | . . . Part Schematics Acquired . | . . . Parts Damaged . | . . . Bothacking | -11 -10 -10 ------------ Run | Scr Mat Min Used RIF Installer . | . . . Robots Hacked . | . . . Non-combat . | . . . Combat . | . . . Robot Hacks Applied . | . . . Relay Couplers Released . | . . . Robots Rewired . | . . . Allies Hacked . | . . . Hacks Repelled . | . . . Allies | -11 -10 -10 -------- Run | Scr Mat Min Total Allies . | . . . Largest Group . | . . . Highest-Rated Group . | . . . Highest-Rated Ally . | . . . Total Orders . | . . . Ally Attacks . | . . . Total Damage . | . . . Kills . | . . . Allies Corrupted . | . . . Allies Melted . | . . . Intel | -11 -10 -10 ------- Run | Scr Mat Min Robot Analysis Total . | . . . Derelict Logs Recovered 1 | . . 1 Drone Launches . | . . . Drone Recoveries . | . . . Exploration | -11 -10 -10 ------------- Run | Scr Mat Min Turns Passed 461 | 142 195 124 Spaces Moved 520 | 105 175 240 Core 285 | 2 43 240 Treads 8 | 8 . . Legs . | . . . Wheels 227 | 95 132 . Hover . | . . . Flight . | . . . Fastest Speed 50 | 50 50 50 Average Speed 66 | 93 73 50 Slowest Speed 160 | 160 100 50 Overloaded Moves . | . . . Propulsion Burnouts . | . . . Robots Hopped . | . . . Cave-ins Triggered . | . . . Exploration Rate (%) 19 | 4 22 33 Regions Visited 2 Branch Regions 1 Pre-discovered Areas 1 | . . 1 Known Exits Taken . | . . . Unknown Exits Taken 2 | 1 1 . Scrap Searched . | . . . Spaces Dug . | . . . Terrain Destroyed . | . . . Melee . | . . . Projectile . | . . . AOE . | . . . Actions | -11 -10 -10 --------- Run | Scr Mat Min Total 577 | 129 205 243 Wait 1 | 1 . . Move 518 | 104 174 240 Hop . | . . . Pick Up . | . . . Fast Attach 12 | 11 . 1 Attach . | . . . Detach . | . . . Swap 2 | 2 . . Drop 4 | 4 . . Fire 29 | 7 22 . Melee . | . . . Ram 11 | . 9 2 Kick . | . . . Crush . | . . . Escape Stasis . | . . . Rewire . | . . . Trap . | . . . Miscellaneous . | . . . Route ------- -11/Scrapyard -10/Materials -10/Mines History --------- Turn | Location | Event 25 | -11/Scrapyard | Discovered new exit (range 15) 143 | -11/Scrapyard | Entered Materials 251 | -10/Materials | Discovered new exit (range 9) 309 | -10/Materials | Build established: Mutant 313 | -10/Materials | Core integrity fell below 50% 338 | -10/Materials | Entered Mines 339 | -10/Mines | Found a damaged Exp. Sensor Array with a note attached 341 | -10/Mines | Found Prototype Device 341 | -10/Mines | Identified Exp. Sensor Array 342 | -10/Mines | Lost 6 parts (1p2n1u2w) 393 | -10/Mines | Assembled infested the area 450 | -10/Mines | Core integrity fell below 20% 462 | -10/Mines | Destroyed by as-64914 with Assembled Heavy Rifle Last Messages --------------- good if we can't spot those areas until they're on top of us... With this we can! Deliver it to Megawrench for repairs then we'll never be afraid of an ambush while sneaking around Materials again, ha." 00341_ Acquired Prototype Device. 00341_ Identified Exp. Sensor Array. 00353_ Acquired derelict log, extracted data. World map updated: -10/Materials. 00359_ System corrupted: Heat flow error (+146). 00393_ ALERT: Infestation in the mines, dispatching Demolisher response squad. 00400_ System corrupted: Heat flow error (+149). 00423_ /DSZ GFNFJMJCHMOGNMYA U 00448_ Slammed into as-08398. 00449_ Slammed into as-55426. 00450_ Knocked back. 00451_ Seismic Analyzer destroyed. 00451_ Exp. Sensor Array destroyed. 00451_ System corrupted by crushing effect (+2). 00451_ System corrupted by crushing effect (+3). 00460_ D-53 Grenadier destroyed. 00462_ System corrupted: Heat flow error (+277). Map ----- +----------------------------------------------------+ | ????????????# #??????? | | ????????????# #??????? | | ????????? ### ##??????? | | ?????????? # ???# #???????? | | ?????????? = ????# #???????? | | ???????????%! ????## ##??????? | | ??????????? = ????## ##?????? | | ???????????? ????## ##????? | | ???????????? ????## #????? | | ??????????????????## #????? | | ??????????????????# #????? | | ??????????????????# ##????? | | ??????????????????## ##?????? | | ???????????????????## ##?????? | | ????????????????????# #?????? | | ????????????????????# a #?????? | | ????????????????????# #?????? | | ????????????????????# ##?????? | | ????????????????????# ##????? | | ????????????????????# =%# ?????? | | ????????????????????# ?????? | | ?????????#####??????# a ##????? | | ????????## ##??????# #????? | | ????????# ##?????? #????? | | ????????# ###?????# #?????? | | ??####### ##????# @#??????? | | ??# """ ##???# #??????? | | ??# #### """ #####a #??????? | | ??# #??# """ #??????? | | ### #### #######??????? | | #????????????? | | ###????????????? | | #### ##??????????????? | | #??## #???????????????? | | ##??### ##??????????????? | | ##???## ####???????????? | | ##???## ##??????????? | | #????## ###????????? | | #?????## #????????? | | ##??????# #???????? | | ##???????# #???????? | | #????????## ##???????? | | ##?????????###### ###????????? | | ##????????????????#####??????????? | | ?????????????????????????????????? | | | | | | | | | | | +----------------------------------------------------+ Best States ------------- Heat Dissipation 25 Energy Generation 10 Energy Capacity 250 Matter Stores 300 Matter Capacity 300 Sight Range 16 Robot Scan Range 30 Terrain Scan Range 16 Terrain Scan Density 60 Resistance: KI 20 Resistance: TH 20 Resistance: EX 20 Resistance: EM 20 Resistance: I 20 Resistance: S 20 Resistance: P 20 Evasion (%) 50 Recoil Reduction 2 Offensive Hacking 10 Item Schematics ----------------- None Robot Schematics ------------------ None Fabricated ------------ Nothing Alien Tech Used ----------------- None Achievements -------------- None Challenges ------------ None Game ------ Seed XenonForcePlating Manual? 0 Play Time 00:11:50 Cumulative 5.9 hours Start 2020.07.26 @ 14:18:46 End 2020.07.26 @ 14:27:51 Sessions 1 Manual Loads 0 Difficulty Adventurer Special Mode None Game No. 6 Rogue 0 Adventurer 6 Explorer 0 Win Type - Total 0 Types 0/0/0/0/0/0/0 Lore% 5 Gallery% 10 Achievement% 12 Wizard Run 0 Options --------- ASCII 0 Keyboard 1 Movement Arrows Keybinds 0 Fullscreen 1 Font 12/Smallcaps Map View 83x54 Tactical HUD 1 Map Filters NONE Filters NONE Steam 1 RUN: cb3f252f-87af-4db7-9899-aa6ebbb1f641